Cogmind - Beta 14 @@@ ROGUE MODE // 2024.12.07 @ 19:28:47 Player: Sirracha Result: Destroyed by D-53 Grenadier with Mini Grenade Launcher Performance ------------- Evolutions (0) 0 Regions Visited (2) 400 Robots Destroyed (16) 80 Value Destroyed (262) 262 Prototype IDs (0) 0 Alien Tech Used (0) 0 Bonus (0) 0 TOTAL SCORE: 742 Bonus ------- None Cogmind --------- Core Integrity 0/250 Matter 300/300 Energy 100/100 System Corruption 2% Temperature Cool (0) Movement Core (150) Ox2 Location -10/Mines Parts ------- > --- POWER (1) -------- (None) > --- PROPULSION (2) --- (None) > --- UTILITY (2) ------ Small Storage Unit Core Shielding > --- WEAPON (2) ------- Makeshift Axe > --- INVENTORY (8) ---- Light Treads Wheel Terrain Scanner Light Armor Plating Beam Cannon Light Assault Rifle Light Assault Rifle Peak State ------------ > --- POWER ------------ Light Ion Engine > --- PROPULSION ------- Light Treads Wheel > --- UTILITY ---------- Small Storage Unit Core Shielding > --- WEAPON ----------- EM Pulse Gun Makeshift Axe > --- INVENTORY -------- Light Armor Plating Beam Cannon Beam Cannon Light Assault Rifle Light Assault Rifle Hammer [Rating: 10] Favorites ----------- Power Light Ion Engine Engine Light Ion Engine Propulsion Light Treads Treads Light Treads Wheel Wheel Utility Small Storage Unit Storage Small Storage Unit Protection Core Shielding Weapon Hammer Energy Gun EM Pulse Gun Energy Cannon Beam Cannon Ballistic Gun Assault Rifle Impact Weapon Hammer Slashing Weapon Makeshift Axe Build | -11 -10 -10 ------- Run | Yrd Mat Min Slots Evolved . | . . . Power . | . . . Propulsion . | . . . Utility . | . . . Weapon . | . . . Parts Attached 16 | 5 5 6 Power 1 | . 1 . Engine 1 | . 1 . Core . | . . . Reactor . | . . . Propulsion 5 | 2 . 3 Treads 2 | 2 . . Leg . | . . . Wheel 3 | . . 3 Hover . | . . . Flight . | . . . Utility 4 | 1 3 . Device . | . . . Storage 2 | 1 1 . Processor . | . . . Hackware . | . . . Protection 2 | . 2 . Artifact . | . . . Weapon 6 | 2 1 3 Energy Gun 2 | 1 . 1 Energy Cannon 1 | . . 1 Ballistic Gun 1 | 1 . . Ballistic Cannon . | . . . Launcher . | . . . Special Weapon . | . . . Impact Weapon 1 | . 1 . Slashing Weapon 1 | . . 1 Piercing Weapon . | . . . Special Melee Weapon . | . . . Unidentified Prototypes . | . . . Corrupted Parts 1 | . . 1 System Corruption 2 | . . 2 Parts Lost 7 | . 3 4 Power 1 | . . 1 Propulsion 3 | . 1 2 Utility . | . . . Weapon 3 | . 2 1 Highest Loss Streak 4 | . 2 4 To Critical Strikes . | . . . Average Slot Usage (%) 81 | . 77 88 Engine 10 | . 8 13 Treads 19 | . 25 9 Wheel 4 | . . 13 Storage 12 | . 12 14 Protection 8 | . 6 14 Energy Gun 6 | . 5 8 Ballistic Gun 6 | . 10 . Impact Weapon 8 | . 7 8 Slashing Weapon 1 | . . 5 Peak Build Rating 10 | 5 7 10 Average Rating 5 | 3 5 7 On Entrance 3 | . 5 5 Naked Turns . | . . . Heaviest Build 14 | 9 13 14 Greatest Support 40 | 40 40 20 Greatest Overweight (x) 2 | 1 . 2 Average Overweight (x) . | . . . Largest Inventory Capacity 8 | 8 8 8 Average Capacity 7 | 7 7 8 Most Carried 8 | 1 6 8 Average Carried 3 | . 2 6 Final Capacity 8 | 8 8 8 Final Carried 7 | . 6 7 Class Distribution -------------------- 100% | Mutant Dominant Class ---------------- Mutant | -10/Materials Mutant | -10/Mines Resources | -11 -10 -10 ----------- Run | Yrd Mat Min Matter Collected 407 | 211 136 60 Remotely . | . . . Salvage Created 436 | . 357 79 Parts 37 | . 28 9 Haulers Intercepted . | . . . Recyclers Shooed . | . . . Parts Field Recycled . | . . . Retrieved Matter . | . . . Parts Self-Destructed . | . . . Prevented . | . . . Kills | -11 -10 -10 ------- Run | Yrd Mat Min Combat Hostiles Destroyed 7 | . 7 . Melee 3 | . 3 . Guns 4 | . 4 . Classes Destroyed 8 | . 6 2 Worker 2 | . . 2 Builder 2 | . 1 1 Tunneler 1 | . . 1 Recycler 1 | . 1 . Operator 1 | . 1 . Watcher 2 | . 2 . Swarmer 3 | . 3 . Grunt 4 | . 4 . Best Kill Streak 3 | . 3 1 Combat Bots Only 3 | . 3 . Max Kills in Single Turn 1 | . 1 1 Gunslinging . | . . . Exploded . | . . . Melee 1 | . 1 . Uniques/NPCs Destroyed . | . . . Combat | -11 -10 -10 -------- Run | Yrd Mat Min Hostile Shots Fired 86 | . 71 15 Missed 15 | . 15 . Damage Taken 946 | . 618 328 Core 251 | . 116 135 Absorbed by Shields . | . . . Redirected to Shielding 36 | . 8 28 Core Remaining (%) 100 | 100 . . Volleys Fired 30 | . 26 4 Largest 2 | . 2 1 Hottest 60 | . 60 40 Shots Fired 52 | . 48 4 Gun 52 | . 48 4 Cannon . | . . . Launcher . | . . . Special . | . . . Kinetic 26 | . 26 . Thermal . | . . . Explosive . | . . . Electromagnetic 26 | . 22 4 Robot Hit Streak 6 | . 6 2 Robot Miss Streak 2 | . 2 1 Penetration Max . | . . . Secondary Targets . | . . . Shots Hit Robots 40 | . 33 7 Core Hits 20 | . 17 3 Critical Kills 1 | . 1 . Critical Parts Destroyed 2 | . 1 1 Critical Strikes 3 | . 2 1 Destroy 1 | . 1 . Smash 2 | . 1 1 Melee Attacks 16 | . 11 5 Impact 16 | . 11 5 Slashing . | . . . Piercing . | . . . Sneak Attacks 4 | . . 4 Combat Hostiles . | . . . Follow-up Attacks . | . . . Damage Inflicted 953 | . 725 228 Guns 441 | . 399 42 Cannons . | . . . Explosions 164 | . 164 . Melee 341 | . 155 186 Ramming 7 | . 7 . Kinetic 195 | . 195 . Thermal 164 | . 164 . Explosive . | . . . Electromagnetic 246 | . 204 42 Impact 341 | . 155 186 Slashing . | . . . Piercing . | . . . Highest Corruption 2 | . . 2 Average Corruption 2 | . . 2 Corruption Purged . | . . . Corruption Blocked . | . . . Effects 3 | . . 3 Heat Flow Errors 1 | . . 1 Energy Discharges 1 | . . 1 Alerts 1 | . . 1 Overload Shots . | . . . Overflow Damage 83 | . 10 73 Projectiles . | . . . Explosions . | . . . Melee 83 | . 10 73 Knockbacks . | . . . Impact . | . . . Kinetic . | . . . Secondary . | . . . Self-Inflicted Damage 54 | . 54 . Shots 1 | . 1 . Rammed 1 | . 1 . Targets Rammed 1 | . 1 . Kicked . | . . . Crushed . | . . . Highest Temperature 116 | . 16 116 Average Temperature 21 | . 6 71 Received Heat Transfer 212 | . 192 20 Siege Activations . | . . . Robots Corrupted 1 | . . 1 Combat Hostiles . | . . . Parts Fried 4 | . 2 2 Impact Corruptions 6 | . 2 4 Robots Melted . | . . . Combat Hostiles . | . . . Parts Melted . | . . . Heat Transferred 100 | . 100 . Parts Sabotaged . | . . . Parts Stolen . | . . . Parts Stripped . | . . . Power Chain Reactions 1 | . 1 . Alert | -11 -10 -10 ------- Run | Yrd Mat Min Peak Influence 183 | . 183 43 Initial 23 | . . 23 Average 83 | . 124 35 Maximum Alert Level . | . . . Low Security (%) 100 | 100 100 100 Level 1 . | . . . Level 2 . | . . . Level 3 . | . . . Level 4 . | . . . Level 5 . | . . . High Security . | . . . Max Security . | . . . Squads Dispatched 3 | . 3 . Investigation 1 | . 1 . Extermination . | . . . Reinforcement 2 | . 2 . Assault . | . . . Garrison . | . . . Intercept . | . . . Searches Triggered . | . . . Construction Impeded . | . . . Haulers Reinforced . | . . . Active Scanning Responses . | . . . Cargo Convoy Interrupts . | . . . Stealth | -11 -10 -10 --------- Run | Yrd Mat Min Distress Signals 1 | . 1 . Communications Jammed . | . . . Distress Signals . | . . . Times Spotted 27 | . 12 15 Peak Tracking Total 14 | . 3 14 Tactical Retreats . | . . . Traps | -11 -10 -10 ------- Run | Yrd Mat Min Traps Triggered 1 | . 1 . Indirectly . | . . . Trap Hack Attempts . | . . . Triggered . | . . . Disarmed . | . . . Reprogrammed . | . . . Reused . | . . . Traps Extracted . | . . . Installed . | . . . Triggered . | . . . Machines | -11 -10 -10 ---------- Run | Yrd Mat Min Machines Disabled 1 | . 1 . Max in Single Turn 1 | . 1 . Machines Repaired . | . . . Machines Dismantled . | . . . Machines Sabotaged . | . . . Overloaded Fab Kills . | . . . Hacking | -11 -10 -10 --------- Run | Yrd Mat Min Machines Accessed 2 | . 2 . Terminals 1 | . 1 . Fabricators . | . . . Repair Stations . | . . . Recycling Units 1 | . 1 . Scanalyzers . | . . . Garrison Access . | . . . Total Hacks 3 | . 3 . Successful 2 | . 2 . Failed 1 | . 1 . Catastrophic . | . . . Database Lockouts . | . . . Manual . | . . . Terminals 2 | . 2 . Fabricators . | . . . Repair Stations . | . . . Recycling Units 1 | . 1 . Scanalyzers . | . . . Garrison Access . | . . . Terminal Hacks 1 | . 1 . Zone Layout 1 | . 1 . Fabricator Hacks . | . . . Repair Station Hacks . | . . . Recycling Unit Hacks 1 | . 1 . Report Inventory 1 | . 1 . Scanalyzer . | . . . Garrison Access Hacks . | . . . Unauthorized Hacks . | . . . Terminals . | . . . Fabricators . | . . . Repair Stations . | . . . Recycling Units . | . . . Scanalyzers . | . . . Garrison Access . | . . . Data Cores Recovered . | . . . Used . | . . . Hacking Detections . | . . . Full Trace Events . | . . . Feedback Events . | . . . Feedback Blocked . | . . . Robot Schematics Acquired . | . . . Robots Built . | . . . Authchips . | . . . Time . | . . . Total Robot Build Rating . | . . . Part Schematics Acquired . | . . . Parts Built . | . . . Authchips . | . . . Time . | . . . Total Part Build Rating . | . . . Parts Repaired . | . . . Time . | . . . Parts Recycled . | . . . Recycled Matter . | . . . Retrieved Matter . | . . . Retrieved Components . | . . . Parts Scanalyzed . | . . . Part Schematics Acquired . | . . . Parts Damaged . | . . . Bothacking | -11 -10 -10 ------------ Run | Yrd Mat Min Used RIF Installer . | . . . Robots Hacked . | . . . Non-combat . | . . . Combat . | . . . Robot Hacks Applied . | . . . Relay Couplers Released . | . . . Fabnet Peak Effective % . | . . . Robots Rewired . | . . . Allies Hacked . | . . . Hacks Repelled . | . . . Allies | -11 -10 -10 -------- Run | Yrd Mat Min Total Allies 2 | . . 2 Largest Group 2 | . . 2 Highest-Rated Group 53 | . . 53 Highest-Rated Ally 31 | . . 31 Total Orders . | . . . Ally Attacks 8 | . . 8 Total Damage 83 | . . 83 Kills . | . . . Allies Corrupted . | . . . Allies Melted . | . . . Intel | -11 -10 -10 ------- Run | Yrd Mat Min Robot Analysis Total . | . . . Derelict Logs Recovered . | . . . Drone Launches . | . . . Drone Recoveries . | . . . Exploration | -11 -10 -10 ------------- Run | Yrd Mat Min Turns Passed 886 | 77 510 299 Spaces Moved 539 | 45 243 251 Core 7 | 5 . 2 Treads 339 | 40 243 56 Legs . | . . . Wheels 193 | . . 193 Hover . | . . . Flight . | . . . Fastest Speed 50 | 50 160 80 Average Speed 133 | 151 160 104 Slowest Speed 160 | 160 160 160 Overloaded Moves . | . . . Propulsion Burnouts . | . . . Robots Hopped . | . . . Cave-ins Triggered . | . . . Exploration Rate (%) 35 | 6 45 55 Regions Visited 2 Branch Regions 1 Pre-discovered Areas . | . . . Known Exits Taken . | . . . Unknown Exits Taken 2 | 1 1 . Scrap Searched . | . . . Spaces Dug . | . . . Terrain Destroyed 3 | . 3 . Melee . | . . . Projectile . | . . . AOE 3 | . 3 . Terrain Rammed . | . . . Walls Destroyed . | . . . Machines Disabled . | . . . Actions | -11 -10 -10 --------- Run | Yrd Mat Min Total 625 | 54 296 275 Wait 2 | . . 2 Move 537 | 44 242 251 Hop . | . . . Pick Up 20 | 5 10 5 Fast Attach . | . . . Attach 10 | 5 3 2 Detach . | . . . Swap 6 | . 2 4 Drop 3 | . 1 2 Fire 30 | . 26 4 Melee 16 | . 11 5 Ram . | . . . Kick . | . . . Crush 1 | . 1 . Escape Stasis . | . . . Rewire . | . . . Trap . | . . . Miscellaneous . | . . . Route ------- -11/Scrapyard -10/Materials (discovered 2 exits: [*Mat] / [*Min]) -10/Mines History --------- Turn | Location | Event 13 | -11/Scrapyard | Discovered new exit (range 14) 78 | -11/Scrapyard | Entered Materials 322 | -10/Materials | Build established: Mutant 386 | -10/Materials | Discovered new exit (range 4) 532 | -10/Materials | Discovered new exit (range 6) 588 | -10/Materials | Entered Mines 771 | -10/Mines | A weapon hastily lodged in a ceiling crevice suddenly fell to the ground 857 | -10/Mines | Assembled infested the area 862 | -10/Mines | Assisted by a Guerilla fighting off Assembled 874 | -10/Mines | Core integrity fell below 50% 886 | -10/Mines | Core integrity fell below 20% 887 | -10/Mines | Destroyed by D-53 Grenadier with Mini Grenade Launcher Last Messages --------------- group of Assembled to figure out where they're coming from, and they're closing on this area, come on!" 00870_ System corrupted: Heat flow error (+136). 00871_ LL-ANN(h): "I'll hold them off! Go on ahead or try to find another way!" 00873_ Lgt. Ion Engine destroyed. 00873_ EM Pulse Gun destroyed. 00873_ HV Slug penetrates as-19717. 00875_ as-19717 suffers critical hit (Destroy). 00875_ as-19717 destroyed. 00875_ as-58217 suffers critical hit (Destroy). 00875_ as-58217 knocked back. 00877_ HV Slug penetrates as-13733. 00878_ LL-ANN(h) destroyed. 00884_ C-30 ARC bursts open, deploying its payload. 00884_ D-53 Grenadier unfolds itself. 00884_ Wheel destroyed. 00887_ The unstable cave ceiling collapses. Map ----- +----------------------------------------------------+ | ????????????????????????????????????????? | | ????????????????????????????????????????? | | ????????????????????????????????????????? | | ???????????? ????????????????????????? | | ?????????? ????????????????????????? | | ??????? ????????????????????????? | | ???????$ * ????????????????????????? | | ?????###=%= ????????????????????????? | | ?????? ! ????????????????????????? | | ?????? ????????????????????????? | | ???????# ????????????????????????? | | ???????# ????????????????????????? | | ???????# !% ????????????????????????? | | ???????# % #????????????????????????? | | ????????# %#????????????????????????? | | ??????????# % ##???????????????????????? | | ???????????# %####????????????????????? | | ???????????#" %%! ##???????????????????? | | ?????????????# !*] #####???????????????? | | ?????????????## z #???????????????? | | ??????????????### ### #####???????????? | | ????????????????#### # ##??????????? | | ???????????????????# #??????????? | | ??????????????????## #??????????? | | ??????????????????# #??????????? | | ??????????????????## @ #???????????? | | ???????????????????# #???????????? | | ???????###????????## dd # #??????????? | | ???????# ????????# % #??????????? | | ???????# #?######## ##??????????? | | ???????# #?# # ## ##???????????? | | ???????# #?# ## ## #????????????? | | ???????# ### ######## #????????????? | | ??###??# % #??????# #????????????? | | ?? ??# ### #??????# #????????????? | | ??# ??# #?# #??????# #????????????? | | ??# ??# #?# #??????# #????????????? | | ??# ??# #?########??????# #????????????? | | ??# ??# #???????????##### #######??????? | | ??# ### ######??????# #????? | | ??# #??????# ###########??????? | | ??# #?????## #####????????????? | | ??# ## ## ## #?????# #????????????? | | ??# ## ## ## ####### """ #????????????? | | ??# ## ## ## ] ! """ #????????????? | | ??# ## ## / | """ #????????????? | | ### #### !*## #????????????? | | #?## ### ####????????????? | | ##?# ##?# #???????????????? | | ##??# ##??# #???????????????? | +----------------------------------------------------+ Best States ------------- Heat Dissipation 25 Energy Generation 10 Energy Capacity 125 Matter Stores 300 Matter Capacity 300 Sight Range 16 Terrain Scan Density 10 Armor Coverage 150 Core Shielding 20 Evasion (%) 44 Recoil Reduction 2 Item Schematics ----------------- None Robot Schematics ------------------ None Fabricated ------------ Nothing Alien Tech Used ----------------- None Achievements -------------- None Challenges ------------ None Game ------ Seed BraceExperimentalAxe Manual? 0 Play Time 00:13:19 Cumulative 3.9 hours Start 2024.12.07 @ 19:17:16 End 2024.12.07 @ 19:28:47 Sessions 1 Manual Loads 0 Difficulty Rogue Special Mode None Game No. 10 Rogue 5 Adventurer 5 Explorer 0 Win Type - Total 0 Types 0/0/0/0/0/0/0/0/0 Lore% 2 Gallery% 8 Achievement% 10 Wizard Run 0 Options --------- Layout 1 ASCII 0 Keyboard 0 Movement Mouse Keybinds 0 Fullscreen 1 Font 24/Smallcaps Map View 50x35 Zoom Use 0% Tactical HUD 1 Map Filters NONE Filters NONE Steam 1 RUN: c07b84fa-88e7-474b-80f1-954de56ca254